Cogmind - Beta 12 @@@ ROGUE MODE // 2023.10.19 @ 21:48:26 Player: Figgis Result: Self-destructed Performance ------------- Evolutions (5) 2500 Regions Visited (12) 2400 Robots Destroyed (130) 650 Value Destroyed (4905) 4905 Prototype IDs (32) 640 Alien Tech Used (0) 0 Bonus (887) 887 TOTAL SCORE: 11982 Bonus ------- High Alert Combat Kills 587 Aligned with FarCom 300 Cogmind --------- Core Integrity 567/1000 Matter 129/300 Energy 150/150 System Corruption 6% Temperature Cool (50) Movement Walking (120) Location -5/Factory Parts ------- > --- POWER (2) -------- Micro Fission Core > --- PROPULSION (4) --- Improved Carbon-fiber Leg > --- UTILITY (8) ------ Lightpack 2.0 Improved Targeting Computer Advanced Melee Analysis Suite Improved Target Analyzer > --- WEAPON (3) ------- Gauss Rifle > --- INVENTORY (40) --- Faulty Light Neutrino Core Carbon-fiber Leg Carbon-fiber Leg Carbon-fiber Leg Carbon-fiber Leg Carbon-fiber Leg Flexi-carbon Leg Armored Leg VTOL Module Cesium-ion Thruster Cesium-ion Thruster Improved VTOL Module Weight Redist. System Experimental Sensor Array Improved Target Analyzer Microactuators Force Booster Advanced ECM Suite Improved Hacking Suite Heart of Steel Mass Driver Mass Driver Mass Driver AWS/Autocannon Greatsword Spear Spear Spear Heavy Pick Heavy Pick Peak State ------------ > --- POWER ------------ Reinforced Deuterium Engine Micro Fission Core > --- PROPULSION ------- Carbon-fiber Leg Improved Carbon-fiber Leg Improved Carbon-fiber Leg Improved Carbon-fiber Leg > --- UTILITY ---------- Lightpack 2.0 Improved Targeting Computer Advanced Melee Analysis Suite Heart of Steel > --- WEAPON ----------- AWS/Autocannon > --- INVENTORY -------- Light Neutrino Core Carbon-fiber Leg Carbon-fiber Leg Carbon-fiber Leg Carbon-fiber Leg Carbon-fiber Leg Flexi-carbon Leg Armored Leg VTOL Module Cesium-ion Thruster Cesium-ion Thruster Improved VTOL Module Weight Redist. System Experimental Sensor Array Improved Target Analyzer Microactuators Force Booster Advanced ECM Suite Improved Hacking Suite Gauss Rifle KE Penetrator Gauss Cannon Greatsword Spear Spear Spear Heavy Pick Heavy Pick [Rating: 128] Favorites ----------- Power Ion Engine Engine Ion Engine Power Core Micro Nuclear Core Propulsion Gravmag System Treads Light Treads Leg Improved Carbon-fiber Leg Hover Unit Gravmag System Flight Unit Xenon Bombardment Thruster Utility Improved Targeting Computer Device Advanced Weight Redist. System Storage Large Storage Unit Processor Improved Targeting Computer Protection Hardened Light Armor Plating Weapon Longsword +1 Energy Gun Spread Laser Energy Cannon Plasma Cannon Ballistic Gun Assault Rifle Ballistic Cannon Assault Cannon Slashing Weapon Longsword +1 Piercing Weapon Spear Build | -11 -10 -10 -10 -9 -8 -7 -7 -7 -7 -7 -6 -5 ------- Run | Jun Mat Min Exi Min Mat Fac Was Fac Low Low Fac Fac Slots Evolved 10 | . . . . . 4 2 . . . . 2 2 Power 1 | . . . . . . . . . . . 1 . Propulsion 2 | . . . . . 1 1 . . . . . . Utility 6 | . . . . . 3 1 . . . . 1 1 Weapon 1 | . . . . . . . . . . . . 1 Parts Attached 139 | 3 12 2 1 . 27 17 4 26 3 . 12 32 Power 20 | . 1 . . . 3 2 . 4 2 . 2 6 Engine 10 | . 1 . . . 2 . . 3 1 . . 3 Core 10 | . . . . . 1 2 . 1 1 . 2 3 Reactor . | . . . . . . . . . . . . . Propulsion 43 | 2 . . . . 7 9 1 9 1 . 2 12 Treads 4 | 2 . . . . 2 . . . . . . . Leg 11 | . . . . . . 2 . 1 . . . 8 Wheel . | . . . . . . . . . . . . . Hover 16 | . . . . . 4 7 1 3 1 . . . Flight 12 | . . . . . 1 . . 5 . . 2 4 Utility 45 | . 5 1 . . 7 4 3 10 . . 7 8 Device 24 | . . . . . 4 3 2 8 . . 4 3 Storage 3 | . 2 . . . . . 1 . . . . . Processor 7 | . . 1 . . . . . 1 . . 3 2 Hackware . | . . . . . . . . . . . . . Protection 11 | . 3 . . . 3 1 . 1 . . . 3 Artifact . | . . . . . . . . . . . . . Weapon 31 | 1 6 1 1 . 10 2 . 3 . . 1 6 Energy Gun 7 | 1 4 1 1 . . . . . . . . . Energy Cannon 3 | . . . . . 3 . . . . . . . Ballistic Gun 6 | . 2 . . . 1 . . 1 . . . 2 Ballistic Cannon 6 | . . . . . 3 1 . . . . . 2 Launcher . | . . . . . . . . . . . . . Special Weapon . | . . . . . . . . . . . . . Impact Weapon . | . . . . . . . . . . . . . Slashing Weapon 6 | . . . . . 3 1 . 2 . . . . Piercing Weapon 3 | . . . . . . . . . . . 1 2 Special Melee Weapon . | . . . . . . . . . . . . . Unidentified Prototypes 8 | . . . . . 4 1 . 2 . . . 1 Parts Lost 53 | . . 1 . . 2 8 . 12 . . 9 21 Power 9 | . . . . . 1 1 . 1 . . 2 4 Propulsion 24 | . . . . . . 5 . 7 . . 3 9 Utility 16 | . . 1 . . 1 2 . 3 . . 4 5 Weapon 4 | . . . . . . . . 1 . . . 3 Highest Loss Streak 10 | . . 1 . . 1 3 . 7 . . 5 10 To Critical Strikes . | . . . . . . . . . . . . . Average Slot Usage (%) 85 | . 95 99 100 100 83 94 84 69 78 84 78 68 Engine 5 | . 13 14 14 14 4 2 . . 7 7 2 5 Core 2 | . . . . . . 4 7 6 . . 6 4 Treads 7 | . 28 28 28 28 4 . . . . . . . Leg 3 | . . . . . . 1 7 2 . . . 19 Hover 10 | . . . . . 21 24 23 8 2 7 2 . Flight 3 | . . . . . . . . 8 23 23 21 3 Device 10 | . . . . . 10 22 15 13 15 15 14 5 Storage 8 | . 13 14 14 14 9 7 7 7 7 7 6 5 Processor 8 | . . 12 14 14 9 7 7 4 7 7 8 11 Protection 3 | . 12 1 . . 6 6 . 2 . . . . Energy Gun 6 | . 13 28 28 28 3 . . . . . . . Energy Cannon 1 | . . . . . 9 . . . . . . . Ballistic Gun 1 | . 12 . . . . . . . . . . 1 Ballistic Cannon 1 | . . . . . 2 5 . . . . . 4 Slashing Weapon 5 | . . . . . 1 9 15 12 15 15 11 . Naked Turns . | . . . . . . . . . . . . . Heaviest Build 100 | 1 34 34 31 31 45 46 18 31 23 23 25 100 Greatest Support 81 | 3 40 40 40 40 60 35 35 43 26 26 30 81 Greatest Overweight (x) 2 | . . . . . 2 2 . 1 . . . 1 Average Overweight (x) . | . . . . . . 1 . . . . . . Largest Inventory Capacity 40 | 5 15 15 15 15 15 15 40 40 40 40 40 40 Average Capacity 24 | 5 11 15 15 15 15 15 39 40 40 40 40 40 Most Carried 40 | 5 14 15 15 15 15 15 16 40 40 40 40 39 Average Carried 19 | 3 9 13 14 15 14 14 14 23 39 40 39 28 Final Capacity 40 | 5 15 15 15 15 15 15 40 40 40 40 40 40 Final Carried 40 | 5 12 15 15 15 15 15 16 40 40 40 40 35 Class Distribution -------------------- 61% | Mutant 14% | Hauler-Sprinter 13% | Hauler-Mutant 10% | Hauler-Gunner Dominant Class ---------------- Mutant | -10/Materials Mutant | -10/Mines Mutant | -10/Exiles Mutant | -9/Mines Mutant | -8/Materials Mutant | -7/Factory Hauler-Mutant | -7/Waste Hauler-Mutant | -7/Factory Hauler-Sprinter | -7/Lower Caves Hauler-Sprinter | -7/Lower Caves Hauler-Sprinter | -6/Factory Hauler-Gunner | -5/Factory Resources | -11 -10 -10 -10 -9 -8 -7 -7 -7 -7 -7 -6 -5 ----------- Run | Jun Mat Min Exi Min Mat Fac Was Fac Low Low Fac Fac Matter Collected 2732 | 200 143 112 . 10 280 196 . 245 30 . 135 1381 Remotely . | . . . . . . . . . . . . . Salvage Created 4902 | . 143 128 . . 903 996 . 1458 . . 331 943 Parts 262 | . 12 5 . . 55 51 . 81 . . 18 40 Haulers Intercepted 5 | . . . . . 2 . . 3 . . . . Recyclers Shooed . | . . . . . . . . . . . . . Parts Field Recycled . | . . . . . . . . . . . . . Retrieved Matter . | . . . . . . . . . . . . . Parts Self-Destructed 1 | . . . . . . . . . 1 . . . Prevented 1 | . . . . . . . . . 1 . . . Kills | -11 -10 -10 -10 -9 -8 -7 -7 -7 -7 -7 -6 -5 ------- Run | Jun Mat Min Exi Min Mat Fac Was Fac Low Low Fac Fac Combat Hostiles Destroyed 102 | . 7 4 . . 14 15 . 26 . . 8 28 Melee 59 | . . . . . 9 15 . 26 . . 8 1 Guns 14 | . 7 4 . . 2 . . . . . . 1 Cannons 28 | . . . . . 2 . . . . . . 26 Classes Destroyed 14 | . 2 . . . 6 3 . . . . . 3 Worker 1 | . . . . . . . . . . . . 1 Builder 1 | . . . . . . . . . . . . 1 Hauler 5 | . . . . . 2 . . 3 . . . . Recycler 1 | . . . . . 1 . . . . . . . Operator 4 | . . . . . 1 . . 2 . . 1 . Watcher 16 | . . . . . 5 6 . 3 . . 2 . Swarmer 30 | . 5 . . . 4 . . 7 . . 7 7 Saboteur 1 | . . . . . . . . . . . . 1 Grunt 42 | . 2 4 . . 7 5 . 11 . . . 13 Brawler 2 | . . . . . . 1 . . . . . 1 Duelist 3 | . . . . . 1 . . . . . 1 1 Sentry 12 | . . . . . 2 5 . 5 . . . . Hunter 3 | . . . . . . 1 . . . . . 2 Programmer 9 | . . . . . . 3 . 3 . . . 3 Best Kill Streak 16 | . 5 2 . . 5 2 . 7 . . 6 16 Combat Bots Only 15 | . 5 2 . . 5 2 . 7 . . 6 15 Max Kills in Single Turn 2 | . 2 1 . . 1 1 . 1 . . 1 1 Gunslinging 1 | . 1 . . . . . . . . . . . Exploded . | . . . . . . . . . . . . . Melee 1 | . . . . . 1 1 . 1 . . 1 1 Uniques/NPCs Destroyed . | . . . . . . . . . . . . . Combat | -11 -10 -10 -10 -9 -8 -7 -7 -7 -7 -7 -6 -5 -------- Run | Jun Mat Min Exi Min Mat Fac Was Fac Low Low Fac Fac Damage Taken 8574 | . 130 134 . . 641 1534 31 1300 . . 1084 3720 Core 1643 | . 25 . . . 127 297 . 350 . . 411 433 Absorbed by Shields . | . . . . . . . . . . . . . Redirected to Shielding 311 | . . . . . . 101 . . . . . 210 Regen/Repaired (Parts) 73 | . . . . . . 29 . 22 . . 22 . Core Remaining (%) 64 | 100 . . . 90 76 . . . . 7 51 . Volleys Fired 74 | . 15 9 . . 32 6 . . . . . 12 Largest 3 | . 2 2 . . 2 1 . . . . . 3 Hottest 160 | . 130 130 . . 160 48 . . . . . 109 Shots Fired 236 | . 30 18 . . 53 6 . . . . . 129 Gun 88 | . 30 18 . . 16 . . . . . . 24 Cannon 148 | . . . . . 37 6 . . . . . 105 Launcher . | . . . . . . . . . . . . . Special . | . . . . . . . . . . . . . Kinetic 155 | . 16 . . . 4 6 . . . . . 129 Thermal 81 | . 14 18 . . 49 . . . . . . . Explosive . | . . . . . . . . . . . . . Electromagnetic . | . . . . . . . . . . . . . Robot Hit Streak 17 | . 4 9 . . 15 3 . . . . . 17 Robot Miss Streak 11 | . 11 5 . . 7 2 . . . . . 6 Penetration Max . | . . . . . . . . . . . . . Secondary Targets 2 | . 1 1 . . . . . . . . . . Max Gunslinging Chain 1 | . 1 1 . . . . . . . . . . Autonomous 95 | . . . . . . . . . . . . 95 Shots Hit Robots 349 | . 22 17 . . 53 70 . 79 . . 20 88 Core Hits 181 | . 17 25 . . 40 25 . 38 . . 6 30 Critical Kills . | . . . . . . . . . . . . . Critical Parts Destroyed . | . . . . . . . . . . . . . Critical Strikes 21 | . . . . . 1 4 . 8 . . 2 6 Blast 6 | . . . . . . . . . . . . 6 Sever 15 | . . . . . 1 4 . 8 . . 2 . Melee Attacks 251 | . . . . . 17 68 . 111 . . 51 4 Impact . | . . . . . . . . . . . . . Slashing 245 | . . . . . 17 68 . 111 . . 45 4 Piercing 6 | . . . . . . . . . . . 6 . Sneak Attacks 12 | . . . . . 2 . . 5 . . 4 1 Combat Hostiles 4 | . . . . . . . . 2 . . 1 1 Follow-up Attacks 10 | . . . . . . 2 . 5 . . 3 . Damage Inflicted 15810 | . 208 242 . . 1695 3149 . 4017 . . 1129 5370 Guns 888 | . 208 242 . . 233 . . . . . . 205 Cannons 5781 | . . . . . 594 108 . . . . . 5079 Explosions . | . . . . . . . . . . . . . Melee 9141 | . . . . . 868 3041 . 4017 . . 1129 86 Ramming . | . . . . . . . . . . . . . Kinetic 5554 | . 99 . . . 63 108 . . . . . 5284 Thermal 1115 | . 109 242 . . 764 . . . . . . . Explosive . | . . . . . . . . . . . . . Electromagnetic . | . . . . . . . . . . . . . Impact . | . . . . . . . . . . . . . Slashing 8951 | . . . . . 868 3041 . 4017 . . 939 86 Piercing 190 | . . . . . . . . . . . 190 . Highest Corruption 12 | . . . . . 2 1 1 1 . . 12 6 Average Corruption 3 | . . . . . 2 1 1 1 . . 8 1 Corruption Purged 7 | . . . . . . . . 2 . . 5 . Corruption Blocked 5 | . . . . . . 5 . . . . . . Effects 24 | . . . . . 3 5 . 1 . . 12 3 Message Errors 2 | . . . . . . . . . . . 2 . Matter Fused 6 | . . . . . 1 1 . . . . 4 . Heat Flow Errors 1 | . . . . . . . . . . . 1 . Energy Discharges 5 | . . . . . 1 3 . . . . 1 . Parts Fused 2 | . . . . . 1 . . . . . . 1 Data Loss (minor) 3 | . . . . . . . . . . . 2 1 Data Loss (major) 2 | . . . . . . . . . . . 1 1 Alerts 2 | . . . . . . 1 . 1 . . . . Misdirections 1 | . . . . . . . . . . . 1 . Overload Shots . | . . . . . . . . . . . . . Overflow Damage 1274 | . . . . . 51 279 . 111 . . 304 529 Projectiles 538 | . . . . . 1 8 . . . . . 529 Explosions . | . . . . . . . . . . . . . Melee 736 | . . . . . 50 271 . 111 . . 304 . Knockbacks 32 | . . . . . . 2 . . . . . 30 Impact . | . . . . . . . . . . . . . Kinetic 31 | . . . . . . 2 . . . . . 29 Secondary 1 | . . . . . . . . . . . . 1 Self-Inflicted Damage . | . . . . . . . . . . . . . Shots . | . . . . . . . . . . . . . Rammed . | . . . . . . . . . . . . . Targets Rammed . | . . . . . . . . . . . . . Kicked . | . . . . . . . . . . . . . Crushed . | . . . . . . . . . . . . . Highest Temperature 401 | . 322 401 . . 327 . . . . . 112 72 Average Temperature 99 | . 113 153 . . 93 . . . . . 41 27 Received Heat Transfer 1770 | . 15 96 . . 198 363 . 336 . . 150 612 Effects 11 | . 3 6 . . 2 . . . . . . . Shutdowns 2 | . . 1 . . 1 . . . . . . . Energy Bleed 1 | . . . . . 1 . . . . . . . Interference 2 | . 2 . . . . . . . . . . . Matter Decay 2 | . 1 1 . . . . . . . . . . Short Circuit 1 | . . 1 . . . . . . . . . . Damage (major) 3 | . . 3 . . . . . . . . . . Siege Activations . | . . . . . . . . . . . . . Robots Corrupted . | . . . . . . . . . . . . . Combat Hostiles . | . . . . . . . . . . . . . Parts Fried . | . . . . . . . . . . . . . Impact Corruptions . | . . . . . . . . . . . . . Robots Melted 1 | . . . . . 1 . . . . . . . Combat Hostiles 1 | . . . . . 1 . . . . . . . Parts Melted 4 | . . . . . 3 1 . . . . . . Heat Transferred 1780 | . 125 305 . . 1350 . . . . . . . Parts Sabotaged . | . . . . . . . . . . . . . Parts Stolen . | . . . . . . . . . . . . . Parts Stripped . | . . . . . . . . . . . . . Power Chain Reactions . | . . . . . . . . . . . . . Missiles Intercepted . | . . . . . . . . . . . . . Alert | -11 -10 -10 -10 -9 -8 -7 -7 -7 -7 -7 -6 -5 ------- Run | Jun Mat Min Exi Min Mat Fac Was Fac Low Low Fac Fac Peak Influence 876 | . 150 163 . . 356 253 123 567 . . 583 876 Initial 273 | . . 58 . . . 161 78 86 . . 177 273 Average 213 | . 59 50 . . 98 131 100 187 . . 346 711 Maximum Alert Level 3 | . . . . . 1 1 . 2 . . 2 3 Low Security (%) 69 | 100 100 100 . 100 81 89 100 70 . . 6 . Level 1 14 | . . . . . 18 10 . 19 . . 58 8 Level 2 6 | . . . . . . . . 9 . . 35 15 Level 3 10 | . . . . . . . . . . . . 75 Level 4 . | . . . . . . . . . . . . . Level 5 . | . . . . . . . . . . . . . High Security . | . . . . . . . . . . . . . Max Security . | . . . . . . . . . . . . . Squads Dispatched 20 | . 1 . . . . 5 . 6 . . 1 7 Investigation 2 | . 1 . . . . . . 1 . . . . Extermination 8 | . . . . . . 3 . 3 . . . 2 Reinforcement 7 | . . . . . . 2 . 2 . . 1 2 Assault 3 | . . . . . . . . . . . . 3 Garrison . | . . . . . . . . . . . . . Intercept . | . . . . . . . . . . . . . Searches Triggered 1 | . . . . . . . . . . . 1 . Construction Impeded . | . . . . . . . . . . . . . Haulers Reinforced 2 | . . . . . . . . 2 . . . . Active Scanning Responses . | . . . . . . . . . . . . . Cargo Convoy Interrupts 1 | . . . . . . 1 . . . . . . Stealth | -11 -10 -10 -10 -9 -8 -7 -7 -7 -7 -7 -6 -5 --------- Run | Jun Mat Min Exi Min Mat Fac Was Fac Low Low Fac Fac Distress Signals 3 | . . . . . 2 . . . . . 1 . Communications Jammed . | . . . . . . . . . . . . . Distress Signals . | . . . . . . . . . . . . . Times Spotted 209 | . 10 5 . 6 28 22 6 35 . . 45 52 Peak Tracking Total 13 | . 6 2 . 12 7 4 6 7 . . 13 13 Tactical Retreats 24 | . 2 1 . . 2 . . 3 . . 10 6 Traps | -11 -10 -10 -10 -9 -8 -7 -7 -7 -7 -7 -6 -5 ------- Run | Jun Mat Min Exi Min Mat Fac Was Fac Low Low Fac Fac Traps Triggered 6 | . 1 . . . 1 2 . . . . 1 1 Indirectly . | . . . . . . . . . . . . . Trap Hack Attempts . | . . . . . . . . . . . . . Triggered . | . . . . . . . . . . . . . Disarmed . | . . . . . . . . . . . . . Reprogrammed . | . . . . . . . . . . . . . Reused . | . . . . . . . . . . . . . Traps Extracted . | . . . . . . . . . . . . . Installed . | . . . . . . . . . . . . . Triggered 3 | . . . . . . 1 . . 2 . . . Most Traps Carried 3 | . . 3 2 . . . . . . . . . Machines | -11 -10 -10 -10 -9 -8 -7 -7 -7 -7 -7 -6 -5 ---------- Run | Jun Mat Min Exi Min Mat Fac Was Fac Low Low Fac Fac Machines Disabled 5 | . . . . . 2 . . . . . . 3 Max in Single Turn 1 | . . . . . 1 . . . . . . 1 Garrison Access 3 | . . . . . 1 1 . . . . 1 . Machines Repaired . | . . . . . . . . . . . . . Machines Sabotaged . | . . . . . . . . . . . . . Overloaded Fab Kills . | . . . . . . . . . . . . . Hacking | -11 -10 -10 -10 -9 -8 -7 -7 -7 -7 -7 -6 -5 --------- Run | Jun Mat Min Exi Min Mat Fac Was Fac Low Low Fac Fac Machines Accessed 46 | . 2 . 2 . 10 9 . 12 1 . 6 4 Terminals 21 | . 2 . . . 6 2 . 5 . . 3 3 Fabricators 3 | . . . . . . 2 . . . . 1 . Repair Stations 5 | . . . . . . 1 . 2 . . 1 1 Recycling Units 5 | . . . . . 1 1 . 3 . . . . Scanalyzers 4 | . . . . . 2 2 . . . . . . Garrison Access 5 | . . . . . 1 1 . 2 . . 1 . Total Hacks 82 | . 6 . 2 . 24 11 . 17 1 . 9 12 Successful 33 | . 2 . 2 . 11 4 . 5 1 . 3 5 Failed 48 | . 4 . . . 12 7 . 12 . . 6 7 Catastrophic 12 | . . . . . 3 3 . 3 . . 3 . Database Lockouts 1 | . . . . . 1 . . . . . . . Manual 23 | . 6 . 1 . 8 . . 2 . . 1 5 Terminals 42 | . 6 . . . 13 3 . 6 . . 4 10 Fabricators 3 | . . . . . . 2 . . . . 1 . Repair Stations 9 | . . . . . . 2 . 3 . . 2 2 Recycling Units 7 | . . . . . 2 1 . 4 . . . . Scanalyzers 10 | . . . . . 8 2 . . . . . . Garrison Access 8 | . . . . . 1 1 . 4 . . 2 . Terminal Hacks 16 | . 2 . 2 . 4 1 . 2 1 . . 4 Record 2 | . . . 1 . 1 . . . . . . . Part Schematic 1 | . . . . . . . . . . . . 1 Robot Analysis 6 | . 2 . . . 2 1 . 1 . . . . Open Door 1 | . . . . . . . . . 1 . . . Branch Access Points 1 | . . . . . . . . . . . . 1 Unreport Threat 1 | . . . . . 1 . . . . . . . Locate Traps 1 | . . . . . . . . 1 . . . . Dispatch Records 1 | . . . . . . . . . . . . 1 Surveillance Status 1 | . . . . . . . . . . . . 1 EX-Prototype ID Bank 1 | . . . 1 . . . . . . . . . Fabricator Hacks . | . . . . . . . . . . . . . Repair Station Hacks 7 | . . . . . . 2 . 2 . . 2 1 Scan Component 4 | . . . . . . 1 . 1 . . 1 1 Repair 3 | . . . . . . 1 . 1 . . 1 . Recycling Unit Hacks 3 | . . . . . 2 . . 1 . . . . Report Inventory 3 | . . . . . 2 . . 1 . . . . Scanalyzer 4 | . . . . . 4 . . . . . . . Insert Component 2 | . . . . . 2 . . . . . . . Analyze 2 | . . . . . 2 . . . . . . . Garrison Access Hacks 3 | . . . . . 1 1 . . . . 1 . Seal Access 3 | . . . . . 1 1 . . . . 1 . Unauthorized Hacks . | . . . . . . . . . . . . . Terminals . | . . . . . . . . . . . . . Fabricators . | . . . . . . . . . . . . . Repair Stations . | . . . . . . . . . . . . . Recycling Units . | . . . . . . . . . . . . . Scanalyzers . | . . . . . . . . . . . . . Garrison Access . | . . . . . . . . . . . . . Data Cores Recovered 4 | . . . . . 1 . . 2 . . 1 . Used . | . . . . . . . . . . . . . Hacking Detections 38 | . 2 . . . 7 8 . 11 . . 6 4 Full Trace Events 1 | . . . . . . . . 1 . . . . Feedback Events . | . . . . . . . . . . . . . Feedback Blocked . | . . . . . . . . . . . . . Robot Schematics Acquired . | . . . . . . . . . . . . . Robots Built . | . . . . . . . . . . . . . Authchips . | . . . . . . . . . . . . . Time . | . . . . . . . . . . . . . Total Robot Build Rating . | . . . . . . . . . . . . . Part Schematics Acquired 3 | . . . . . 2 . . . . . . 1 Parts Built . | . . . . . . . . . . . . . Authchips . | . . . . . . . . . . . . . Time . | . . . . . . . . . . . . . Total Part Build Rating . | . . . . . . . . . . . . . Parts Repaired 3 | . . . . . . 1 . 1 . . 1 . Time 85 | . . . . . . 22 . 44 . . 19 . Parts Recycled . | . . . . . . . . . . . . . Recycled Matter . | . . . . . . . . . . . . . Retrieved Matter . | . . . . . . . . . . . . . Retrieved Components . | . . . . . . . . . . . . . Parts Scanalyzed 2 | . . . . . 2 . . . . . . . Part Schematics Acquired 2 | . . . . . 2 . . . . . . . Parts Damaged 1 | . . . . . 1 . . . . . . . Bothacking | -11 -10 -10 -10 -9 -8 -7 -7 -7 -7 -7 -6 -5 ------------ Run | Jun Mat Min Exi Min Mat Fac Was Fac Low Low Fac Fac Used RIF Installer . | . . . . . . . . . . . . . Robots Hacked . | . . . . . . . . . . . . . Non-combat . | . . . . . . . . . . . . . Combat . | . . . . . . . . . . . . . Robot Hacks Applied . | . . . . . . . . . . . . . Relay Couplers Released . | . . . . . . . . . . . . . Fabnet Peak Effective % . | . . . . . . . . . . . . . Robots Rewired . | . . . . . . . . . . . . . Allies Hacked . | . . . . . . . . . . . . . Hacks Repelled . | . . . . . . . . . . . . . Allies | -11 -10 -10 -10 -9 -8 -7 -7 -7 -7 -7 -6 -5 -------- Run | Jun Mat Min Exi Min Mat Fac Was Fac Low Low Fac Fac Total Allies 3 | . . 3 . . . . . . . . . . Largest Group 3 | . . 3 3 3 . . . . . . . . Highest-Rated Group 40 | . . 40 40 40 . . . . . . . . Highest-Rated Ally 16 | . . 16 16 16 . . . . . . . . Total Orders . | . . . . . . . . . . . . . Ally Attacks 4 | . . . . 4 . . . . . . . . Total Damage 22 | . . . . 22 . . . . . . . . Kills . | . . . . . . . . . . . . . Allies Corrupted . | . . . . . . . . . . . . . Allies Melted . | . . . . . . . . . . . . . Intel | -11 -10 -10 -10 -9 -8 -7 -7 -7 -7 -7 -6 -5 ------- Run | Jun Mat Min Exi Min Mat Fac Was Fac Low Low Fac Fac Robot Analysis Total 6 | . 2 . . . 2 1 . 1 . . . . Derelict Logs Recovered 4 | . . 2 . . . . . . 2 . . . Drone Launches . | . . . . . . . . . . . . . Drone Recoveries . | . . . . . . . . . . . . . Exploration | -11 -10 -10 -10 -9 -8 -7 -7 -7 -7 -7 -6 -5 ------------- Run | Jun Mat Min Exi Min Mat Fac Was Fac Low Low Fac Fac Turns Passed 8778 | 33 481 1117 523 36 1399 1774 82 1440 172 60 564 1097 Spaces Moved 7615 | 44 259 615 321 23 656 1194 114 1768 403 199 1168 851 Core 102 | 44 49 . . . . . . 9 . . . . Treads 1319 | . 210 615 321 23 150 . . . . . . . Legs 444 | . . . . . . . . . . . . 444 Wheels . | . . . . . . . . . . . . . Hover 2264 | . . . . . 506 1194 114 450 . . . . Flight 3486 | . . . . . . . . 1309 403 199 1168 407 Fastest Speed 27 | 50 50 160 160 160 52 105 62 30 30 30 27 27 Average Speed 82 | 50 139 160 160 160 121 115 62 41 30 30 29 103 Slowest Speed 190 | 50 160 160 160 160 180 186 66 130 30 30 34 190 Overloaded Moves . | . . . . . . . . . . . . . Propulsion Burnouts . | . . . . . . . . . . . . . Robots Hopped 7 | . . . . . . . . 3 2 . 2 . Cave-ins Triggered 1 | . . . . . . . . . . . 1 . Exploration Rate (%) 41 | 4 43 98 69 12 48 29 76 51 56 23 27 9 Regions Visited 12 Branch Regions 5 Pre-discovered Areas 4 | . . 2 1 . . . . . 1 . . . Known Exits Taken . | . . . . . . . . . . . . . Unknown Exits Taken 10 | 1 1 1 1 1 1 . . 1 1 1 1 . Scrap Searched 4 | . . 1 . 1 . . . . 2 . . . Spaces Dug 46 | . . . . . . . . 12 . . 23 11 Terrain Destroyed 86 | . . . . . 9 2 . 12 . . 23 40 Melee 38 | . . . . . . . . 12 . . 23 3 Projectile 48 | . . . . . 9 2 . . . . . 37 AOE . | . . . . . . . . . . . . . Terrain Rammed . | . . . . . . . . . . . . . Walls Destroyed . | . . . . . . . . . . . . . Machines Disabled . | . . . . . . . . . . . . . Actions | -11 -10 -10 -10 -9 -8 -7 -7 -7 -7 -7 -6 -5 --------- Run | Jun Mat Min Exi Min Mat Fac Was Fac Low Low Fac Fac Total 9747 | 54 350 731 334 22 1187 1522 125 2393 451 198 1342 1038 Wait 1482 | . 46 98 3 . 421 207 . 448 43 . 101 115 Move 7589 | 43 258 614 320 22 655 1194 113 1761 398 198 1162 851 Hop 7 | . . . . . . . . 3 2 . 2 . Pick Up 142 | 8 15 6 3 . 14 9 5 48 3 . 12 19 Fast Attach 22 | . . . . . 10 8 . . . . 4 . Attach 72 | 3 6 2 . . 6 4 3 15 2 . 6 25 Detach 9 | . . . . . . 1 . 4 . . 1 3 Swap 45 | . 6 . 1 . 11 5 1 11 1 . 2 7 Drop 59 | . 4 2 7 . 21 9 3 4 2 . 5 2 Fire 74 | . 15 9 . . 32 6 . . . . . 12 Melee 232 | . . . . . 17 66 . 99 . . 46 4 Ram . | . . . . . . . . . . . . . Kick . | . . . . . . . . . . . . . Crush . | . . . . . . . . . . . . . Escape Stasis 14 | . . . . . . 13 . . . . 1 . Rewire . | . . . . . . . . . . . . . Trap . | . . . . . . . . . . . . . Miscellaneous . | . . . . . . . . . . . . . Route ------- -11/Junkyard -10/Materials (discovered 2 exits: [*Mat] / [*Min]) -10/Mines (discovered 3 exits: [*Mat x2] / *Exi) -10/Exiles -9/Mines -8/Materials -7/Factory -7/Waste -7/Factory (discovered 2 exits: *Fac / *Low) -7/Lower Caves -7/Lower Caves -6/Factory (discovered 4 exits: *Fac x2 / [*Low x2]) -5/Factory (discovered 4 exits: Upp x2 / Ext x2) History --------- Turn | Location | Event 21 | -11/Junkyard | Discovered new exit (range 15) 34 | -11/Junkyard | Entered Materials 188 | -10/Materials | Discovered new exit (range 15) 323 | -10/Materials | Build established: Mutant 505 | -10/Materials | Discovered new exit (range 7) 515 | -10/Materials | Entered Mines 605 | -10/Mines | Discovered new exit (range 9) 636 | -10/Mines | Learned Materials stockpile data 698 | -10/Mines | Learned location of Storage (-8) 954 | -10/Mines | Learned location of Zion (-6) 968 | -10/Mines | Found a hidden stash of uninstalled traps 1007 | -10/Mines | Deemed a non-threat by the Exiles lab entrance 1007 | -10/Mines | Discovered new exit (range 5) 1131 | -10/Mines | Found a damaged Exp. Sensor Array with a note attached 1135 | -10/Mines | Found Prototype Device 1299 | -10/Mines | Discovered new exit (range 8) 1329 | -10/Mines | Assisted by bots powering up and referring to "LRC-V3" 1632 | -10/Mines | Entered Exiles 1632 | -10/Exiles | Accompanied by 3 allies 1671 | -10/Exiles | Met 8R-AWN 1700 | -10/Exiles | Met EX-HEX 1743 | -10/Exiles | Met EX-BIN 1768 | -10/Exiles | Aligned with FarCom system 1770 | -10/Exiles | Given EX-Vault access code 1807 | -10/Exiles | Opened EX-Vault 1874 | -10/Exiles | Found Lightpack 2.0 1880 | -10/Exiles | Found AWS/Autocannon 1886 | -10/Exiles | Found Longsword +1 1917 | -10/Exiles | Warned to stay clear of 0b10 Research branches 1960 | -10/Exiles | Met EX-DEC 2130 | -10/Exiles | Discovered new exit (range 14) 2155 | -10/Exiles | Stole three prototypes: Lightpack 2.0, AWS/Autocannon, Longsword +1 2155 | -10/Exiles | Entered Mines 2155 | -9/Mines | Accompanied by 3 allies 2169 | -9/Mines | Assembled infested the area 2179 | -9/Mines | Discovered new exit (range 8) 2191 | -9/Mines | Entered Materials 2191 | -8/Materials | Evolved 4 slots: Propulsion x1, Utility x3 2981 | -8/Materials | Identified Exp. Sensor Array 3408 | -8/Materials | Central database locked down 3531 | -8/Materials | Discovered new exit (range 15) 3590 | -8/Materials | Entered Factory 3590 | -7/Factory | Evolved 2 slots: Propulsion x1, Utility x1 3592 | -7/Factory | FarCom data flow suspended 4784 | -7/Factory | Repaired Gravmag System 4949 | -7/Factory | Lost 3 parts (2n1u) 4985 | -7/Factory | Cargo convoy interrupted 5364 | -7/Factory | Sucked down chute 5364 | -7/Factory | Entered Waste 5375 | -7/Waste | Spotted C-40 Crusher 5380 | -7/Waste | Crushed by Compactor (0 parts destroyed, 1 dropped) 5402 | -7/Waste | Spotted C-40 Crusher 5402 | -7/Waste | Spotted C-40 Crusher 5421 | -7/Waste | Spotted C-40 Crusher 5433 | -7/Waste | Spotted C-40 Crusher 5434 | -7/Waste | Discovered new exit (range 10) 5434 | -7/Waste | Spotted C-40 Crusher 5446 | -7/Waste | Entered Factory 5520 | -7/Factory | Core integrity fell below 50% 5539 | -7/Factory | Lost 3 parts (2n1u) 5677 | -7/Factory | Build established: Hauler-Mutant 6167 | -7/Factory | Lost 7 parts (4n2u1w) 6175 | -7/Factory | Destroyed 7 combat bots 6506 | -7/Factory | Core integrity fell below 20% 6693 | -7/Factory | Repaired Xenon Bombardment Thruster 6820 | -7/Factory | Discovered new exit (range 7) 6844 | -7/Factory | Discovered new exit (range 12) 6849 | -7/Factory | Build established: Hauler-Sprinter 6886 | -7/Factory | Entered Lower Caves 6894 | -7/Lower Caves | Learned Factory emergency access door positions 6937 | -7/Lower Caves | Spotted B-75 Beast 7001 | -7/Lower Caves | Found Prototype Device 7014 | -7/Lower Caves | Discovered new exit (range 10) 7058 | -7/Lower Caves | Entered another Lower Caves area 7099 | -7/Lower Caves | Discovered new exit (range 7) 7110 | -7/Lower Caves | Spotted B-75 Beast 7118 | -7/Lower Caves | Entered Factory 7118 | -6/Factory | Evolved 2 slots: Power x1, Utility x1 7142 | -6/Factory | Repaired Adv. Weight Redist. System 7211 | -6/Factory | Discovered new exit (range 11) 7214 | -6/Factory | Discovered new exit (range 12) 7391 | -6/Factory | Crushed by falling debris 7392 | -6/Factory | System corruption reached 10% 7422 | -6/Factory | Lost 3 parts (1n2u) 7468 | -6/Factory | Search patrols dispatched 7581 | -6/Factory | Discovered new exit (range 16) 7630 | -6/Factory | Spotted B-75 Beast 7671 | -6/Factory | Discovered new exit (range 16) 7682 | -6/Factory | Entered another Factory area 7682 | -5/Factory | Evolved 2 slots: Utility x1, Weapon x1 7708 | -5/Factory | Spotted B-75 Beast 7709 | -5/Factory | Lost 5 parts (2p2n1u) 7720 | -5/Factory | Identified exit to Upper Caves 7720 | -5/Factory | Identified exit to Extension 7909 | -5/Factory | Lost 10 parts (2p3n4u1w) 7921 | -5/Factory | Destroyed 15 combat bots 7982 | -5/Factory | First assault squad dispatched 7997 | -5/Factory | Identified Heart of Steel 8161 | -5/Factory | Build established: Hauler-Gunner 8779 | -5/Factory | Self-destructed Last Messages --------------- 08716_ G-67 Veteran unfolds itself. 08716_ G-50 Soldier unfolds itself. 08716_ M-28 Smith unfolds itself. 08760_ System corrupted: Substantial component data lost. 08760_ Slug penetrates Wall. 08760_ Slug penetrates P-70 Sage. 08760_ Rnf. Deuterium Engine destroyed. 08764_ Slug penetrates Wall. 08765_ Door malfunctions. 08768_ Imp. Carbon-fiber Leg destroyed. 08768_ Slug penetrates Wall. 08768_ Slug penetrates P-70 Sage. 08768_ P-70 Sage knocked back. 08772_ Gauss Cannon destroyed. 08774_ Carbon-fiber Leg destroyed. 08776_ Slug penetrates P-70 Sage. 08776_ Slug penetrates Wall. 08777_ KE Penetrator destroyed. 08777_ Imp. Carbon-fiber Leg destroyed. 08779_ System corrupted: Component data lost. Map ----- +----------------------------------------------------+ | | | | | ???###########?????????##################? | | ?? #?????????# # #? | | " """ [= #?????????# ! # #? | | " """ [= #??######## # #? | | " """ / #??# # # #? | | #??# """ ##+##+########+##?? | | " #??# """ ## ] #??? | | " #??# """ ## ]] #??? | | " !#??# ## """ #??? | | #???? *## """ ! #??? | | ####+##############+### """ #??? | | # = #??? | | # ########### ### #??? | | # # #?????###+#### ######## #??? | | # ###?????# # # # #??? | | + # #?????# + + # #??? | | # ###?????# # # # #??? | | + #???????# #ggg # " " # #??? | | ## #???????# # / "R" # #??? | | ## ##??????# ] # # """ # #??? | | # #??????######## #+###### #??? | | # #?????????????# # #???## ##?? | | # #?????????????# # ##### #?? | | # T #?????????????#@ # T #?? | | + "" #?????????????# # ##### #?? | | # #?????????????# # #???#####?? | | # #?????????????# # #?????????? | | # #??????####???# # #?????????? | | # #???####T ###?# # #?????????? | | ### ###???# ###p##p#+#####?????? | | #?# #?????# # m #?????? | | ### #?????# # % #?????? | | + "#?????# # " "" """" #?????? | | # "%#?????# # " " """" #?????? | | # "#?????# # " "" """" #?????? | | # ####### # """ """" #?????? | | # # #?????? | | # =+ """" """" #?????? | | # %# """" """" #?????? | | # # """" """" #?????? | | # # """" """" #?????? | | ####+########## %# #?????? | | # #???# * %##############?????? | | # #???# * #???????????? | | ### #???# #???????????? | | #?# """ #???# ############# | | #?# """"" #???# # # | | #?# """"" #???# # # | +----------------------------------------------------+ Best States ------------- Heat Dissipation 53 Coolant Potential 65 Energy Generation 30 Energy Capacity 480 Matter Stores 300 Matter Capacity 300 Sight Range 16 Robot Scan Range 20 Terrain Scan Density 10 Jamming Range 12 Additional Mass Support 9 Armor Coverage 150 Resistance: EX 25 Propulsion Shielding 66 Melee Speed Boost 20 Evasion (%) 74 Targeting Accuracy 6 Melee Accuracy 22 Recoil Reduction 3 Item Schematics ----------------- Exp. Sensor Array | -8/Materials | Scanalyzed Imp. Targeting Computer | -8/Materials | Scanalyzed Mic. Fission Core | -5/Factory | Hacked Robot Schematics ------------------ None Fabricated ------------ Nothing Alien Tech Used ----------------- None Achievements -------------- Safety First Challenges ------------ None Game ------ Seed HeartStorageCorpse Manual? 0 Play Time 01:22:55 Cumulative 76.5 hours Start 2023.10.19 @ 20:26:00 End 2023.10.19 @ 21:48:26 Sessions 1 Manual Loads 0 Difficulty Rogue Special Mode None Game No. 127 Rogue 124 Adventurer 3 Explorer 0 Win Type - Total 0 Types 0/0/0/0/0/0/0/0/0 Lore% 34 Gallery% 51 Achievement% 37 Wizard Run 0 Options --------- ASCII 0 Keyboard 0 Movement Mouse Keybinds 0 Fullscreen 2 Font 18/SmallcapsGlow Map View 76x50 Tactical HUD 1 Map Filters NONE Filters NONE Steam 1 RUN: 8a1d42ae-4f18-4ab6-bfd4-279d6f397ac1